[Event "*** Titled Tuesday Blitz"]
[Site "Chess.com"]
[Date "2020.11.24"]
[Round "10"]
[White "Shuvalov"]
[Black "tlomigtlis"]
[Result "0-1"]
[WhiteElo "2452"]
[BlackElo "2577"]
[TimeControl "180+1"]
[EndTime "12:12:20 PST"]
[Termination "tlomigtlis won by resignation"]

1. Nf3 {[%clk 0:02:59.2]} 1... Nf6 {[%clk 0:03:00.1]} 2. c4 {[%clk 0:02:58.8]}
2... c6 {[%clk 0:02:58.9]} 3. g3 {[%clk 0:02:58.1]} 3... d5 {[%clk 0:02:59]} 4.
Bg2 {[%clk 0:02:58.4]} 4... dxc4 {[%clk 0:02:58.7]} 5. O-O {[%clk 0:02:57.9]}
5... g6 {[%clk 0:02:55.3]} 6. Na3 {[%clk 0:02:57.1]} 6... Be6 {[%clk 0:02:55.3]}
7. Qc2 {[%clk 0:02:54.1]} 7... Bg7 {[%clk 0:02:54]} 8. Nxc4 {[%clk 0:02:52.2]}
8... O-O {[%clk 0:02:54]} 9. d3 {[%clk 0:02:51.9]} 9... Na6 {[%clk 0:02:53.6]}
10. Bd2 {[%clk 0:02:49.8]} 10... Nd5 {[%clk 0:02:52.6]} 11. a3 {[%clk
0:02:48.2]} 11... h6 {[%clk 0:02:50.8]} 12. Na5 {[%clk 0:02:45.1]} 12... Qb6
{[%clk 0:02:44.4]} 13. Rab1 {[%clk 0:02:40.7]} 13... Rfd8 {[%clk 0:02:36.7]} 14.
b4 {[%clk 0:02:39.1]} 14... Qc7 {[%clk 0:02:35]} 15. Rfc1 {[%clk 0:02:37.2]}
15... Rac8 {[%clk 0:02:33.9]} 16. e4 {[%clk 0:02:25.3]} 16... Nf6 {[%clk
0:02:25.2]} 17. Bf4 {[%clk 0:02:24.5]} 17... Qb6 {[%clk 0:02:08.4]} 18. Be3
{[%clk 0:02:20.8]} 18... Qb5 {[%clk 0:02:05]} 19. Bf1 {[%clk 0:02:14.7]} 19...
Qh5 {[%clk 0:01:59.8]} 20. Nd4 {[%clk 0:01:59.7]} 20... Ng4 {[%clk 0:01:45.9]}
21. h4 {[%clk 0:01:54]} 21... Bxd4 {[%clk 0:01:43.8]} 22. Bxd4 {[%clk
0:01:49.5]} 22... Rxd4 {[%clk 0:01:44.7]} 23. Nxb7 {[%clk 0:01:47.6]} 23... g5
{[%clk 0:01:35.6]} 24. f3 {[%clk 0:01:42.3]} 24... Ne5 {[%clk 0:01:31.6]} 25.
Qf2 {[%clk 0:01:40.5]} 25... Nxf3+ {[%clk 0:01:25.1]} 26. Kg2 {[%clk 0:01:40.7]}
26... Bg4 {[%clk 0:01:21]} 27. Be2 {[%clk 0:01:39.5]} 27... Rd7 {[%clk
0:01:11.4]} 28. Bxf3 {[%clk 0:01:39]} 28... Rxb7 {[%clk 0:01:02.3]} 29. b5
{[%clk 0:01:30.7]} 29... Nb8 {[%clk 0:00:52.9]} 30. a4 {[%clk 0:01:26.6]} 30...
Nd7 {[%clk 0:00:47.4]} 31. bxc6 {[%clk 0:01:17.5]} 31... Rxb1 {[%clk 0:00:44.9]}
32. cxd7 {[%clk 0:01:17.4]} 32... Bxf3+ {[%clk 0:00:40.1]} 33. Qxf3 {[%clk
0:01:13]} 33... Qxf3+ {[%clk 0:00:41]} 34. Kxf3 {[%clk 0:01:13.5]} 34... Rbxc1
{[%clk 0:00:41.7]} 35. dxc8=Q+ {[%clk 0:01:12.2]} 35... Rxc8 {[%clk 0:00:42.6]}
36. hxg5 {[%clk 0:01:08.9]} 36... hxg5 {[%clk 0:00:42.2]} 0-1

[Event "*** Titled Tuesday Blitz"]
[Site "Chess.com"]
[Date "2020.11.24"]
[Round "10"]
[White "HajduIstvanCM"]
[Black "HouseOfDurin"]
[Result "0-1"]
[WhiteElo "1706"]
[BlackElo "2120"]
[TimeControl "180+1"]
[EndTime "12:12:24 PST"]
[Termination "HouseOfDurin won by checkmate"]

1. e4 {[%clk 0:03:00.9]} 1... c5 {[%clk 0:03:00.2]} 2. Nf3 {[%clk 0:03:00]} 2...
Nc6 {[%clk 0:03:00.6]} 3. Bb5 {[%clk 0:02:58.4]} 3... g6 {[%clk 0:02:59.9]} 4.
O-O {[%clk 0:02:57.9]} 4... Bg7 {[%clk 0:02:59.8]} 5. Re1 {[%clk 0:02:57.3]}
5... e5 {[%clk 0:02:59.7]} 6. Nc3 {[%clk 0:02:52.5]} 6... Nge7 {[%clk
0:02:59.1]} 7. a4 {[%clk 0:02:51.3]} 7... O-O {[%clk 0:02:57.9]} 8. d3 {[%clk
0:02:41.1]} 8... d6 {[%clk 0:02:57.2]} 9. Bg5 {[%clk 0:02:34]} 9... h6 {[%clk
0:02:55.2]} 10. Be3 {[%clk 0:02:30.3]} 10... Be6 {[%clk 0:02:53.7]} 11. Bc4
{[%clk 0:02:21.6]} 11... Qd7 {[%clk 0:02:47.7]} 12. Nd5 {[%clk 0:02:13.7]} 12...
Bxd5 {[%clk 0:02:46.6]} 13. Bxd5 {[%clk 0:02:07.7]} 13... Nxd5 {[%clk
0:02:46.3]} 14. exd5 {[%clk 0:02:07.1]} 14... Nb4 {[%clk 0:02:38.4]} 15. c4
{[%clk 0:02:01.5]} 15... f5 {[%clk 0:02:37.5]} 16. Qb3 {[%clk 0:01:43.7]} 16...
a5 {[%clk 0:02:31.6]} 17. Bd2 {[%clk 0:01:40.8]} 17... b6 {[%clk 0:02:31.1]} 18.
Rad1 {[%clk 0:01:37.1]} 18... g5 {[%clk 0:02:16.1]} 19. Bxb4 {[%clk 0:01:35.1]}
19... axb4 {[%clk 0:02:15.4]} 20. Qc2 {[%clk 0:01:33.9]} 20... Qxa4 {[%clk
0:02:09]} 21. b3 {[%clk 0:01:33.4]} 21... Qa2 {[%clk 0:02:07.8]} 22. Qc1 {[%clk
0:01:18.9]} 22... Qxb3 {[%clk 0:02:04.9]} 23. Nxg5 {[%clk 0:01:17.9]} 23... hxg5
{[%clk 0:02:03.9]} 24. Qxg5 {[%clk 0:01:17.2]} 24... Rf6 {[%clk 0:01:58]} 25.
Rd2 {[%clk 0:01:07.9]} 25... Qc3 {[%clk 0:01:49.8]} 26. Rdd1 {[%clk 0:00:51.4]}
26... b3 {[%clk 0:01:43.2]} 27. h4 {[%clk 0:00:50.3]} 27... b2 {[%clk
0:01:31.5]} 28. h5 {[%clk 0:00:46.4]} 28... Ra1 {[%clk 0:01:29.7]} 29. Rb1
{[%clk 0:00:45.6]} 29... Rxb1 {[%clk 0:01:29]} 30. Rxb1 {[%clk 0:00:44.9]} 30...
Qc2 {[%clk 0:01:28.1]} 31. Rf1 {[%clk 0:00:34.6]} 31... b1=Q {[%clk 0:01:27.5]}
32. Rxb1 {[%clk 0:00:31.4]} 32... Qxb1+ {[%clk 0:01:28.4]} 33. Kh2 {[%clk
0:00:30.7]} 33... Qxd3 {[%clk 0:01:27.2]} 34. h6 {[%clk 0:00:30.2]} 34... Rxh6+
{[%clk 0:01:26.6]} 35. Qxh6 {[%clk 0:00:26.9]} 35... Bxh6 {[%clk 0:01:27.5]} 36.
g3 {[%clk 0:00:26.3]} 36... Qxc4 {[%clk 0:01:28]} 37. Kh3 {[%clk 0:00:26]} 37...
Qxd5 {[%clk 0:01:28.2]} 38. f4 {[%clk 0:00:25.6]} 38... Qh1# {[%clk 0:01:25.1]}
0-1

[Event "*** Titled Tuesday Blitz"]
[Site "Chess.com"]
[Date "2020.11.24"]
[Round "10"]
[White "OscarAng"]
[Black "Taktikmonster"]
[Result "0-1"]
[WhiteElo "2346"]
[BlackElo "2225"]
[TimeControl "180+1"]
[EndTime "12:12:27 PST"]
[Termination "Taktikmonster won by checkmate"]

1. d4 {[%clk 0:03:00.9]} 1... Nf6 {[%clk 0:02:59.4]} 2. Bg5 {[%clk 0:03:00.7]}
2... Ne4 {[%clk 0:02:59]} 3. Bf4 {[%clk 0:02:59.8]} 3... c5 {[%clk 0:02:58.8]}
4. f3 {[%clk 0:03:00]} 4... Qa5+ {[%clk 0:02:55.2]} 5. c3 {[%clk 0:02:59.8]}
5... Nf6 {[%clk 0:02:54.9]} 6. Nd2 {[%clk 0:02:59.7]} 6... cxd4 {[%clk
0:02:54.5]} 7. Nc4 {[%clk 0:03:00.1]} 7... Qd8 {[%clk 0:02:43.6]} 8. Qxd4 {[%clk
0:02:59]} 8... Nc6 {[%clk 0:02:41.5]} 9. Qe3 {[%clk 0:02:58.7]} 9... e6 {[%clk
0:02:07.8]} 10. Nd6+ {[%clk 0:02:55.8]} 10... Bxd6 {[%clk 0:02:07.3]} 11. Bxd6
{[%clk 0:02:56.7]} 11... Nd5 {[%clk 0:02:03.5]} 12. Qc5 {[%clk 0:02:01.9]} 12...
b6 {[%clk 0:01:50]} 13. Qa3 {[%clk 0:02:00.7]} 13... Ne3 {[%clk 0:01:39.1]} 14.
Qa4 {[%clk 0:01:17.5]} 14... b5 {[%clk 0:01:38.8]} 15. Qb3 {[%clk 0:01:14]}
15... Na5 {[%clk 0:01:36.9]} 16. Qxb5 {[%clk 0:01:11.7]} 16... Nc2+ {[%clk
0:01:36.6]} 17. Kd2 {[%clk 0:01:10.9]} 17... Nxa1 {[%clk 0:01:36]} 18. e4 {[%clk
0:01:01.6]} 18... Qb6 {[%clk 0:01:07.5]} 19. b4 {[%clk 0:00:46.7]} 19... Qxd6+
{[%clk 0:01:01.3]} 20. Kc1 {[%clk 0:00:45.9]} 20... Nc6 {[%clk 0:00:42.7]} 21.
Be2 {[%clk 0:00:39.5]} 21... Rb8 {[%clk 0:00:41.2]} 22. Qa4 {[%clk 0:00:38.6]}
22... Qf4+ {[%clk 0:00:34.3]} 23. Kb2 {[%clk 0:00:37.9]} 23... Qd2+ {[%clk
0:00:33.1]} 24. Kxa1 {[%clk 0:00:37.5]} 24... Qc1# {[%clk 0:00:33.2]} 0-1

[Event "*** Titled Tuesday Blitz"]
[Site "Chess.com"]
[Date "2020.11.24"]
[Round "10"]
[White "Orest_Vovk"]
[Black "Oglob71"]
[Result "1-0"]
[WhiteElo "2538"]
[BlackElo "2412"]
[TimeControl "180+1"]
[EndTime "12:12:33 PST"]
[Termination "Orest_Vovk won by resignation"]

1. h3 {[%clk 0:03:00.9]} 1... d5 {[%clk 0:02:59.1]} 2. e4 {[%clk 0:03:00.3]}
2... dxe4 {[%clk 0:02:58.5]} 3. Nc3 {[%clk 0:02:59.4]} 3... Nf6 {[%clk
0:02:58.5]} 4. Qe2 {[%clk 0:02:59.5]} 4... Qd4 {[%clk 0:02:55.1]} 5. g4 {[%clk
0:02:54.1]} 5... h6 {[%clk 0:02:54.3]} 6. Bg2 {[%clk 0:02:54]} 6... Nc6 {[%clk
0:02:53]} 7. a3 {[%clk 0:02:53.7]} 7... e5 {[%clk 0:02:50.9]} 8. Nxe4 {[%clk
0:02:53]} 8... Be7 {[%clk 0:02:47.9]} 9. d3 {[%clk 0:02:48.6]} 9... Nxe4 {[%clk
0:02:44.5]} 10. Bxe4 {[%clk 0:02:46.2]} 10... Be6 {[%clk 0:02:44.2]} 11. Nf3
{[%clk 0:02:45.2]} 11... Qd6 {[%clk 0:02:43.9]} 12. Bd2 {[%clk 0:02:41.2]} 12...
Bd5 {[%clk 0:02:44]} 13. Bc3 {[%clk 0:02:34.7]} 13... O-O-O {[%clk 0:02:38.9]}
14. O-O-O {[%clk 0:02:28.8]} 14... f6 {[%clk 0:02:37.1]} 15. Kb1 {[%clk
0:02:21.7]} 15... Kb8 {[%clk 0:02:36.4]} 16. Nh4 {[%clk 0:02:10.4]} 16... Rhe8
{[%clk 0:02:35.8]} 17. Nf5 {[%clk 0:02:09.3]} 17... Qd7 {[%clk 0:02:33.6]} 18.
Nxg7 {[%clk 0:02:05.4]} 18... Rg8 {[%clk 0:02:31]} 19. Nf5 {[%clk 0:02:03.7]}
19... Bf8 {[%clk 0:02:29.5]} 20. Bxd5 {[%clk 0:01:57.3]} 20... Qxd5 {[%clk
0:02:28.6]} 21. Qe4 {[%clk 0:01:57.8]} 21... Qe6 {[%clk 0:02:23.4]} 22. Qc4
{[%clk 0:01:38.5]} 22... Qxc4 {[%clk 0:02:17.4]} 23. dxc4 {[%clk 0:01:39.4]}
23... Kc8 {[%clk 0:02:17.8]} 24. f3 {[%clk 0:01:38.9]} 24... Ne7 {[%clk
0:02:15.3]} 25. Rxd8+ {[%clk 0:01:33.5]} 25... Kxd8 {[%clk 0:02:14]} 26. Rd1+
{[%clk 0:01:33.1]} 26... Ke8 {[%clk 0:02:13.9]} 27. Nxe7 {[%clk 0:01:33]} 27...
Bxe7 {[%clk 0:02:07.3]} 28. Bd2 {[%clk 0:01:32.2]} 28... h5 {[%clk 0:02:06.8]}
29. Be3 {[%clk 0:01:11]} 29... hxg4 {[%clk 0:02:05.9]} 30. hxg4 {[%clk
0:01:11.1]} 30... a6 {[%clk 0:02:03.8]} 31. Rh1 {[%clk 0:01:07.5]} 31... Kf7
{[%clk 0:02:03]} 32. Rh7+ {[%clk 0:01:04.4]} 32... Ke6 {[%clk 0:02:03.3]} 33. c3
{[%clk 0:01:01.6]} 33... Rd8 {[%clk 0:01:57.7]} 34. Kc2 {[%clk 0:01:01.7]} 34...
b5 {[%clk 0:01:48.8]} 35. cxb5 {[%clk 0:00:58.5]} 35... axb5 {[%clk 0:01:49.4]}
36. Rh6 {[%clk 0:00:50.7]} 36... Kf7 {[%clk 0:01:48.3]} 37. g5 {[%clk 0:00:45]}
37... fxg5 {[%clk 0:01:46.4]} 38. Rh7+ {[%clk 0:00:44.5]} 38... Ke6 {[%clk
0:01:40]} 39. Rxe7+ {[%clk 0:00:44.1]} 39... Kxe7 {[%clk 0:01:40.1]} 40. Bxg5+
{[%clk 0:00:43.9]} 40... Kd7 {[%clk 0:01:40.4]} 41. Bxd8 {[%clk 0:00:44.3]}
41... Kxd8 {[%clk 0:01:40.9]} 42. Kd3 {[%clk 0:00:42.2]} 42... Kd7 {[%clk
0:01:40.9]} 43. c4 {[%clk 0:00:37.8]} 43... c6 {[%clk 0:01:41]} 44. cxb5 {[%clk
0:00:37.5]} 44... cxb5 {[%clk 0:01:40.7]} 45. Ke4 {[%clk 0:00:37.6]} 45... Ke6
{[%clk 0:01:40.5]} 46. b3 {[%clk 0:00:37.3]} 46... Kd6 {[%clk 0:01:40.6]} 47. a4
{[%clk 0:00:37.2]} 1-0

[Event "*** Titled Tuesday Blitz"]
[Site "Chess.com"]
[Date "2020.11.24"]
[Round "10"]
[White "Limelight2727"]
[Black "Resignify"]
[Result "0-1"]
[WhiteElo "1946"]
[BlackElo "2254"]
[TimeControl "180+1"]
[EndTime "12:12:39 PST"]
[Termination "Resignify won by resignation"]

1. d4 {[%clk 0:03:00.9]} 1... Nf6 {[%clk 0:02:59.5]} 2. c4 {[%clk 0:02:53]} 2...
e6 {[%clk 0:02:59]} 3. Nc3 {[%clk 0:02:48.2]} 3... Bb4 {[%clk 0:02:57.2]} 4. e3
{[%clk 0:02:48.3]} 4... O-O {[%clk 0:02:49.1]} 5. Bd2 {[%clk 0:02:48.4]} 5... d5
{[%clk 0:02:36.4]} 6. cxd5 {[%clk 0:02:45.8]} 6... exd5 {[%clk 0:02:31.8]} 7.
Bd3 {[%clk 0:02:45.8]} 7... c5 {[%clk 0:02:28.2]} 8. a3 {[%clk 0:02:45.4]} 8...
Bxc3 {[%clk 0:02:20.9]} 9. Bxc3 {[%clk 0:02:46.3]} 9... c4 {[%clk 0:02:19.4]}
10. Bc2 {[%clk 0:02:45]} 10... Nc6 {[%clk 0:02:16.5]} 11. Nf3 {[%clk 0:02:44.5]}
11... Bg4 {[%clk 0:02:06.5]} 12. h3 {[%clk 0:02:30.4]} 12... Bh5 {[%clk
0:02:06.1]} 13. g4 {[%clk 0:02:30.1]} 13... Bg6 {[%clk 0:02:05.6]} 14. Ne5
{[%clk 0:02:27.7]} 14... Bxc2 {[%clk 0:01:59.2]} 15. Qxc2 {[%clk 0:02:27.5]}
15... Ne4 {[%clk 0:01:54.1]} 16. O-O-O {[%clk 0:02:03.8]} 16... f6 {[%clk
0:01:43.2]} 17. Nxc6 {[%clk 0:02:03]} 17... bxc6 {[%clk 0:01:43.3]} 18. f3
{[%clk 0:02:03.7]} 18... Nxc3 {[%clk 0:01:35.9]} 19. Qxc3 {[%clk 0:02:00.5]}
19... Rb8 {[%clk 0:01:31]} 20. Rhe1 {[%clk 0:01:59.4]} 20... Rb3 {[%clk
0:01:24.9]} 21. Qc2 {[%clk 0:01:55.7]} 21... Qb6 {[%clk 0:01:21]} 22. h4 {[%clk
0:01:45.4]} 22... Rb8 {[%clk 0:01:19.9]} 23. Re2 {[%clk 0:01:44.9]} 23... Qa5
{[%clk 0:00:53]} 24. Qf5 {[%clk 0:01:21.5]} 24... c3 {[%clk 0:00:37.4]} 25. Qe6+
{[%clk 0:01:13.1]} 25... Kh8 {[%clk 0:00:35.1]} 26. bxc3 {[%clk 0:00:51.3]}
26... Qxc3+ {[%clk 0:00:29.4]} 0-1

[Event "*** Titled Tuesday Blitz"]
[Site "Chess.com"]
[Date "2020.11.24"]
[Round "10"]
[White "Mr_Heisenberg13"]
[Black "anon219"]
[Result "0-1"]
[WhiteElo "2528"]
[BlackElo "2761"]
[TimeControl "180+1"]
[EndTime "12:12:51 PST"]
[Termination "anon219 won by resignation"]

1. e4 {[%clk 0:03:00.9]} 1... c5 {[%clk 0:02:49.1]} 2. Nf3 {[%clk 0:03:00.6]}
2... a6 {[%clk 0:02:46.5]} 3. c3 {[%clk 0:02:58.3]} 3... e6 {[%clk 0:02:43.8]}
4. d4 {[%clk 0:02:58]} 4... d5 {[%clk 0:02:44.6]} 5. e5 {[%clk 0:02:56.8]} 5...
Bd7 {[%clk 0:02:44.2]} 6. Be2 {[%clk 0:02:56.1]} 6... cxd4 {[%clk 0:02:41.9]} 7.
cxd4 {[%clk 0:02:55.4]} 7... Bb5 {[%clk 0:02:42.6]} 8. O-O {[%clk 0:02:52]} 8...
Bxe2 {[%clk 0:02:42]} 9. Qxe2 {[%clk 0:02:52.9]} 9... Nc6 {[%clk 0:02:42.6]} 10.
Nc3 {[%clk 0:02:47.3]} 10... Nge7 {[%clk 0:02:42.7]} 11. Bg5 {[%clk 0:02:46.1]}
11... Qb6 {[%clk 0:02:41.7]} 12. Rfd1 {[%clk 0:02:42.1]} 12... Nf5 {[%clk
0:02:41.5]} 13. Qd3 {[%clk 0:02:35.2]} 13... h6 {[%clk 0:02:34]} 14. Be3 {[%clk
0:02:34.1]} 14... Qd8 {[%clk 0:02:21.5]} 15. Rac1 {[%clk 0:02:30.3]} 15... Be7
{[%clk 0:02:21.4]} 16. Na4 {[%clk 0:02:29.2]} 16... O-O {[%clk 0:02:19.4]} 17.
Nc5 {[%clk 0:02:29]} 17... Bxc5 {[%clk 0:02:12.2]} 18. Rxc5 {[%clk 0:02:29.9]}
18... Rc8 {[%clk 0:02:10.1]} 19. Rdc1 {[%clk 0:02:29.4]} 19... f6 {[%clk
0:02:06.2]} 20. exf6 {[%clk 0:02:24.8]} 20... Qxf6 {[%clk 0:02:07.1]} 21. a3
{[%clk 0:02:22.8]} 21... Nd6 {[%clk 0:02:02.6]} 22. Nd2 {[%clk 0:02:07.4]} 22...
Rc7 {[%clk 0:01:50.9]} 23. b4 {[%clk 0:02:06.3]} 23... Rcf7 {[%clk 0:01:49.7]}
24. Qc3 {[%clk 0:01:56.7]} 24... Qh4 {[%clk 0:01:45.3]} 25. g3 {[%clk 0:01:54]}
25... Qh5 {[%clk 0:01:42.6]} 26. a4 {[%clk 0:01:52.4]} 26... Qe2 {[%clk
0:01:38.8]} 27. Rf1 {[%clk 0:01:37.9]} 27... Nf5 {[%clk 0:01:28.8]} 28. b5
{[%clk 0:01:29.6]} 28... axb5 {[%clk 0:01:14.1]} 29. axb5 {[%clk 0:01:30.5]}
29... Nce7 {[%clk 0:01:11.4]} 30. b6 {[%clk 0:01:17.5]} 30... Nc6 {[%clk
0:01:09.5]} 31. h4 {[%clk 0:00:16.1]} 31... Nxg3 {[%clk 0:01:06.6]} 32. Rc1
{[%clk 0:00:08.4]} 32... Rxf2 {[%clk 0:01:04.8]} 0-1

[Event "*** Titled Tuesday Blitz"]
[Site "Chess.com"]
[Date "2020.11.24"]
[Round "10"]
[White "HaryKane"]
[Black "JoachimMouhamad"]
[Result "0-1"]
[WhiteElo "2572"]
[BlackElo "2481"]
[TimeControl "180+1"]
[EndTime "12:12:53 PST"]
[Termination "JoachimMouhamad won by resignation"]

1. e4 {[%clk 0:03:00.9]} 1... c5 {[%clk 0:02:56.1]} 2. Nf3 {[%clk 0:02:58.9]}
2... Nc6 {[%clk 0:02:56.3]} 3. Bb5 {[%clk 0:02:56.9]} 3... d6 {[%clk 0:02:55.7]}
4. d4 {[%clk 0:02:56.5]} 4... cxd4 {[%clk 0:02:55.3]} 5. Qxd4 {[%clk 0:02:57.4]}
5... Bd7 {[%clk 0:02:53.8]} 6. Bxc6 {[%clk 0:02:57.4]} 6... Bxc6 {[%clk
0:02:51.8]} 7. Nc3 {[%clk 0:02:57.8]} 7... Nf6 {[%clk 0:02:48.7]} 8. Bg5 {[%clk
0:02:57.7]} 8... e6 {[%clk 0:02:44.7]} 9. O-O-O {[%clk 0:02:55.4]} 9... Be7
{[%clk 0:02:41.5]} 10. h4 {[%clk 0:02:51.8]} 10... Rc8 {[%clk 0:02:36.5]} 11.
Qd3 {[%clk 0:02:49.7]} 11... O-O {[%clk 0:02:31.1]} 12. Nd4 {[%clk 0:02:49.9]}
12... Qa5 {[%clk 0:02:27.1]} 13. Kb1 {[%clk 0:02:43.4]} 13... b5 {[%clk
0:02:13.9]} 14. Nb3 {[%clk 0:02:35.4]} 14... Qb6 {[%clk 0:02:05.7]} 15. Be3
{[%clk 0:02:29.1]} 15... Qb8 {[%clk 0:01:58]} 16. f3 {[%clk 0:02:22]} 16... b4
{[%clk 0:01:52.9]} 17. Ne2 {[%clk 0:02:21.6]} 17... a5 {[%clk 0:01:39.7]} 18.
Nbd4 {[%clk 0:02:21.5]} 18... a4 {[%clk 0:01:33.5]} 19. g4 {[%clk 0:02:19]}
19... Nd7 {[%clk 0:01:29.3]} 20. Bg5 {[%clk 0:02:11.5]} 20... Ne5 {[%clk
0:01:20.5]} 21. Qd2 {[%clk 0:01:43.7]} 21... Bxg5 {[%clk 0:01:19.7]} 22. hxg5
{[%clk 0:01:34.7]} 22... b3 {[%clk 0:01:20]} 23. axb3 {[%clk 0:01:26.7]} 23...
axb3 {[%clk 0:01:20]} 24. Nxb3 {[%clk 0:01:25]} 24... Nxf3 {[%clk 0:01:18]} 25.
Qf4 {[%clk 0:01:13.7]} 25... Ne5 {[%clk 0:01:01.1]} 26. Ned4 {[%clk 0:01:04.9]}
26... Qa8 {[%clk 0:00:54.9]} 27. Rxh7 {[%clk 0:00:53.3]} 27... Bxe4 {[%clk
0:00:44.8]} 28. Rh3 {[%clk 0:00:49.7]} 28... Bxc2+ {[%clk 0:00:39.2]} 29. Nxc2
{[%clk 0:00:47.7]} 29... Rxc2 {[%clk 0:00:36]} 30. Rdh1 {[%clk 0:00:40.9]} 30...
Ng6 {[%clk 0:00:31.7]} 31. Qe4 {[%clk 0:00:34.6]} 31... Qxe4 {[%clk 0:00:28]}
0-1

[Event "*** Titled Tuesday Blitz"]
[Site "Chess.com"]
[Date "2020.11.24"]
[Round "10"]
[White "SergeyShtyka"]
[Black "PriSachu"]
[Result "1-0"]
[WhiteElo "2414"]
[BlackElo "2522"]
[TimeControl "180+1"]
[EndTime "12:12:53 PST"]
[Termination "SergeyShtyka won by checkmate"]

1. e4 {[%clk 0:03:00.9]} 1... e5 {[%clk 0:02:53.7]} 2. Nf3 {[%clk 0:03:00.6]}
2... Nc6 {[%clk 0:02:53]} 3. Nc3 {[%clk 0:03:00.5]} 3... Nf6 {[%clk 0:02:52.5]}
4. Bb5 {[%clk 0:03:00.5]} 4... Bb4 {[%clk 0:02:47.2]} 5. O-O {[%clk 0:02:59.8]}
5... O-O {[%clk 0:02:38.1]} 6. d3 {[%clk 0:02:59.6]} 6... Bxc3 {[%clk
0:02:29.8]} 7. bxc3 {[%clk 0:02:59.4]} 7... d6 {[%clk 0:02:30.2]} 8. Bxc6 {[%clk
0:02:59.7]} 8... bxc6 {[%clk 0:02:29.8]} 9. Bg5 {[%clk 0:02:59.6]} 9... a5
{[%clk 0:02:17.2]} 10. h3 {[%clk 0:02:55.4]} 10... Qe7 {[%clk 0:02:12.2]} 11. c4
{[%clk 0:02:54]} 11... h6 {[%clk 0:01:55.3]} 12. Bh4 {[%clk 0:02:53.3]} 12... c5
{[%clk 0:01:51.7]} 13. Rb1 {[%clk 0:02:52.4]} 13... g5 {[%clk 0:01:39]} 14. Nxg5
{[%clk 0:02:51]} 14... hxg5 {[%clk 0:01:30.5]} 15. Bxg5 {[%clk 0:02:51.9]} 15...
Qe6 {[%clk 0:01:22.1]} 16. f4 {[%clk 0:02:52]} 16... Nh7 {[%clk 0:01:09.6]} 17.
f5 {[%clk 0:02:51.7]} 17... Qe8 {[%clk 0:01:09]} 18. f6 {[%clk 0:01:33.7]} 18...
Kh8 {[%clk 0:00:42.1]} 19. Qh5 {[%clk 0:01:13.1]} 19... Rg8 {[%clk 0:00:39.1]}
20. h4 {[%clk 0:01:12.5]} 20... Qe6 {[%clk 0:00:36.3]} 21. Rf5 {[%clk 0:01:10]}
21... Rg6 {[%clk 0:00:32]} 22. Rbf1 {[%clk 0:01:03.4]} 22... Bd7 {[%clk
0:00:30.3]} 23. Bh6 {[%clk 0:00:58.5]} 23... Rb8 {[%clk 0:00:13.2]} 24. Bg7+
{[%clk 0:00:57.8]} 24... Kg8 {[%clk 0:00:12.7]} 25. g4 {[%clk 0:00:57.2]} 25...
Rb2 {[%clk 0:00:11.3]} 26. Qxh7+ {[%clk 0:00:54.2]} 26... Kxh7 {[%clk
0:00:03.1]} 27. Rh5+ {[%clk 0:00:53.7]} 27... Kg8 {[%clk 0:00:04]} 28. Rh8#
{[%clk 0:00:53.4]} 1-0

[Event "*** Titled Tuesday Blitz"]
[Site "Chess.com"]
[Date "2020.11.24"]
[Round "10"]
[White "sara_khm"]
[Black "machupichu10"]
[Result "1-0"]
[WhiteElo "2607"]
[BlackElo "2747"]
[TimeControl "180+1"]
[EndTime "12:12:59 PST"]
[Termination "sara_khm won by resignation"]

1. d4 {[%clk 0:03:00.8]} 1... Nf6 {[%clk 0:02:55.2]} 2. c4 {[%clk 0:03:00.8]}
2... e6 {[%clk 0:02:52.1]} 3. Nf3 {[%clk 0:03:00.9]} 3... d5 {[%clk 0:02:52.8]}
4. Nc3 {[%clk 0:02:59.7]} 4... Bb4 {[%clk 0:02:53.2]} 5. Bg5 {[%clk 0:02:56.4]}
5... c5 {[%clk 0:01:57.9]} 6. dxc5 {[%clk 0:02:31.3]} 6... Qa5 {[%clk 0:01:57]}
7. Bd2 {[%clk 0:02:29.4]} 7... dxc4 {[%clk 0:01:54.5]} 8. a3 {[%clk 0:01:48.7]}
8... Bxc3 {[%clk 0:01:54.6]} 9. Bxc3 {[%clk 0:01:49]} 9... Qxc5 {[%clk 0:01:55]}
10. e3 {[%clk 0:01:48.5]} 10... O-O {[%clk 0:01:55]} 11. Bb4 {[%clk 0:01:47.6]}
11... Qb6 {[%clk 0:01:35.5]} 12. Bxf8 {[%clk 0:01:47]} 12... Kxf8 {[%clk
0:01:32.4]} 13. Bxc4 {[%clk 0:01:46.9]} 13... Bd7 {[%clk 0:01:25.5]} 14. O-O
{[%clk 0:01:39.4]} 14... Ke7 {[%clk 0:01:19.6]} 15. Ne5 {[%clk 0:01:33.6]} 15...
Nc6 {[%clk 0:01:19.5]} 16. Nxd7 {[%clk 0:01:32.8]} 16... Nxd7 {[%clk 0:01:20.4]}
17. b4 {[%clk 0:01:32.6]} 17... Nf6 {[%clk 0:01:13]} 18. Qb3 {[%clk 0:01:28]}
18... Rc8 {[%clk 0:01:09.2]} 19. Rac1 {[%clk 0:01:27.4]} 19... h6 {[%clk
0:01:05.1]} 20. Rfd1 {[%clk 0:01:27.4]} 20... Rc7 {[%clk 0:01:00.2]} 21. Be2
{[%clk 0:01:26.7]} 21... Ne5 {[%clk 0:00:59.4]} 22. Rxc7+ {[%clk 0:01:22.8]}
22... Qxc7 {[%clk 0:01:00.3]} 23. Qb2 {[%clk 0:01:23]} 23... Ned7 {[%clk
0:00:59.3]} 24. h3 {[%clk 0:01:22.3]} 24... g6 {[%clk 0:00:57.9]} 25. Qd4 {[%clk
0:01:19.3]} 25... a6 {[%clk 0:00:54.7]} 26. Bf3 {[%clk 0:01:09.5]} 26... h5
{[%clk 0:00:50.1]} 27. Qa7 {[%clk 0:01:02.2]} 27... Nd5 {[%clk 0:00:32.4]} 28.
Bxd5 {[%clk 0:01:01.6]} 28... exd5 {[%clk 0:00:33.3]} 29. Rxd5 {[%clk 0:00:53]}
29... Qc1+ {[%clk 0:00:30.6]} 30. Kh2 {[%clk 0:00:52.8]} 30... Qc7+ {[%clk
0:00:30.5]} 31. f4 {[%clk 0:00:52.8]} 31... Nb6 {[%clk 0:00:18]} 32. Rc5 {[%clk
0:00:52.3]} 1-0